[Event "Titled Tuesday Blitz August 16 Early 2022"]
[White "Kuchava, Ana"]
[Black "Ansh M Shah"]
[WhiteFideId "13605348"]
[BlackFideId "25033379"]
[WhiteElo "1955"]
[BlackElo "1819"]
[Result "1-0"]
[Round "09"]
[TimeControl "180+2"]
[Date "2022.08.18"]
[WhiteClock "0:00:00"]
[BlackClock "0:00:00"]

1. d4 {[%clk 0:00:00]}  Nf6 {[%clk 0:00:00]} 2. c4 {[%clk 0:00:00]}  e6 {[%clk 0:00:00]} 3. Nf3 {[%clk 0:00:00]}  d5 {[%clk 0:00:00]} 4. Nc3 {[%clk 0:00:00]}  Be7 {[%clk 0:00:00]} 5. Bf4 {[%clk 0:00:00]}  O-O {[%clk 0:00:00]} 6. e3 {[%clk 0:00:00]}  c6 {[%clk 0:00:00]} 7. Bd3 {[%clk 0:00:00]}  dxc4 {[%clk 0:00:00]} 8. Bxc4 {[%clk 0:00:00]}  b5 {[%clk 0:00:00]} 9. Bd3 {[%clk 0:00:00]}  Bb7 {[%clk 0:00:00]} 10. O-O {[%clk 0:00:00]}  Nbd7 {[%clk 0:00:00]} 11. Rc1 {[%clk 0:00:00]}  a6 {[%clk 0:00:00]} 12. Ne4 {[%clk 0:00:00]}  Nxe4 {[%clk 0:00:00]} 13. Bxe4 {[%clk 0:00:00]}  Rc8 {[%clk 0:00:00]} 14. Ne5 {[%clk 0:00:00]}  Nxe5 {[%clk 0:00:00]} 15. Bxe5 {[%clk 0:00:00]}  Qd7 {[%clk 0:00:00]} 16. Qh5 {[%clk 0:00:00]}  g6 {[%clk 0:00:00]} 17. Qh6 {[%clk 0:00:00]}  f6 {[%clk 0:00:00]} 18. Bxg6 {[%clk 0:00:00]}  Bd8 {[%clk 0:00:00]} 19. Bd6 {[%clk 0:00:00]}  Bc7 {[%clk 0:00:00]} 20. Bxf8 {[%clk 0:00:00]}  Rxf8 {[%clk 0:00:00]} 21. Be4 {[%clk 0:00:00]}  Rf7 {[%clk 0:00:00]} 22. Qh3 {[%clk 0:00:00]}  Rg7 {[%clk 0:00:00]} 23. Qf3 {[%clk 0:00:00]}  Qd6 {[%clk 0:00:00]} 24. g3 {[%clk 0:00:00]}  h5 {[%clk 0:00:00]} 25. Bxc6 {[%clk 0:00:00]}  Bc8 {[%clk 0:00:00]} 26. Be8 {[%clk 0:00:00]}  h4 {[%clk 0:00:00]} 27. Qc6 {[%clk 0:00:00]}  hxg3 {[%clk 0:00:00]} 28. Qxd6 {[%clk 0:00:00]}  gxh2+ {[%clk 0:00:00]} 29. Kh1 {[%clk 0:00:00]}  Bb7+ {[%clk 0:00:00]} 30. Qc6 {[%clk 0:00:00]}  Bxc6+ {[%clk 0:00:00]} 31. Rxc6 {[%clk 0:00:00]}  Kf8 {[%clk 0:00:00]} 32. Bh5 {[%clk 0:00:00]}  e5 {[%clk 0:00:00]} 33. dxe5 {[%clk 0:00:00]}  Bxe5 {[%clk 0:00:00]} 34. Rc8+ {[%clk 0:00:00]}  Ke7 {[%clk 0:00:00]} 35. Rfc1 {[%clk 0:00:00]}  Ke6 {[%clk 0:00:00]} 36. Re8+ {[%clk 0:00:00]}  Kd7 {[%clk 0:00:00]} 37. Rec8 {[%clk 0:00:00]}  Rg5 {[%clk 0:00:00]} 38. f4 {[%clk 0:00:00]}  Rg1+ {[%clk 0:00:00]} 39. Rxg1 {[%clk 0:00:00]}  hxg1=Q+ {[%clk 0:00:00]} 40. Kxg1 {[%clk 0:00:00]}  Kxc8 {[%clk 0:00:00]} 41. fxe5 {[%clk 0:00:00]}  fxe5 {[%clk 0:00:00]} 42. Kf2 {[%clk 0:00:00]}  Kc7 {[%clk 0:00:00]} 43. Kf3 {[%clk 0:00:00]}  Kd6 {[%clk 0:00:00]} 44. Ke4 {[%clk 0:00:00]}  b4 {[%clk 0:00:00]} 45. Be2 {[%clk 0:00:00]}  a5 {[%clk 0:00:00]} 46. Bc4 {[%clk 0:00:00]}  Kc5 {[%clk 0:00:00]} 47. b3 {[%clk 0:00:00]}  Kd6 {[%clk 0:00:00]} 48. Kf5 {[%clk 0:00:00]}  Kc5 {[%clk 0:00:00]} 49. e4 {[%clk 0:00:00]}  Kd6 {[%clk 0:00:00]} 50. Kf6 {[%clk 0:00:00]}  Kc5 {[%clk 0:00:00]} 51. Kxe5 {[%clk 0:00:00]}  a4 {[%clk 0:00:00]} 52. Kf5 {[%clk 0:00:00]}  axb3 {[%clk 0:00:00]} 53. axb3 {[%clk 0:00:00]}  Kd4 {[%clk 0:00:00]} 54. e5 {[%clk 0:00:00]}  Kc3 {[%clk 0:00:00]} 55. e6 {[%clk 0:00:00]}  Kb2 {[%clk 0:00:00]} 56. e7 {[%clk 0:00:00]}  Ka3 {[%clk 0:00:00]} 57. e8=Q {[%clk 0:00:00]}  Kb2 {[%clk 0:00:00]} 58. Qe2+ {[%clk 0:00:00]}  Ka3 {[%clk 0:00:00]} 59. Qe1 {[%clk 0:00:00]}  Kb2 {[%clk 0:00:00]} 60. Qd2+ {[%clk 0:00:00]}  Ka3 {[%clk 0:00:00]} 61. Qc1+ {[%clk 0:00:00]}  Ka2 {[%clk 0:00:00]} 62. Qd2+ {[%clk 0:00:00]}  Ka3 {[%clk 0:00:00]} 63. Qd6 {[%clk 0:00:00]}  Kb2 {[%clk 0:00:00]} 64. Qxb4 {[%clk 0:00:00]}  Ka1 {[%clk 0:00:00]} 65. Qc3+ {[%clk 0:00:00]}  Ka2 {[%clk 0:00:00]} 66. b4+ {[%clk 0:00:00]}  Kb1 {[%clk 0:00:00]} 67. Bd3+ {[%clk 0:00:00]}  Ka2 {[%clk 0:00:00]} 68. Qc2+ {[%clk 0:00:00]}  Ka3 {[%clk 0:00:00]} 69. Qb1 {[%clk 0:00:00]}  Ka4 {[%clk 0:00:00]} 70. b5 {[%clk 0:00:00]}  Ka5 {[%clk 0:00:00]} 71. b6 {[%clk 0:00:00]}  Ka4 {[%clk 0:00:00]} 72. b7 {[%clk 0:00:00]}  Ka5 {[%clk 0:00:00]} 73. b8=Q {[%clk 0:00:00]}  Ka4 {[%clk 0:00:00]} 74. Qa8# {[%clk 0:00:00]} 1-0


[Site "https://www.chess.com"]

[Event "Titled Tuesday Blitz August 16 Early 2022"]
[White "Kuznetsova, Olga"]
[Black "Tasev, Dejan"]
[WhiteFideId "4191323"]
[BlackFideId "936618"]
[WhiteElo "2134"]
[BlackElo "2253"]
[Result "1-0"]
[Round "09"]
[TimeControl "180+2"]
[Date "2022.08.18"]
[WhiteClock "0:00:00"]
[BlackClock "0:00:00"]

1. d4 {[%clk 0:00:00]}  Nf6 {[%clk 0:00:00]} 2. g3 {[%clk 0:00:00]}  e6 {[%clk 0:00:00]} 3. Bg2 {[%clk 0:00:00]}  d5 {[%clk 0:00:00]} 4. Nf3 {[%clk 0:00:00]}  Be7 {[%clk 0:00:00]} 5. O-O {[%clk 0:00:00]}  O-O {[%clk 0:00:00]} 6. b3 {[%clk 0:00:00]}  b6 {[%clk 0:00:00]} 7. Bb2 {[%clk 0:00:00]}  Bb7 {[%clk 0:00:00]} 8. Nbd2 {[%clk 0:00:00]}  Nbd7 {[%clk 0:00:00]} 9. Ne5 {[%clk 0:00:00]}  Nxe5 {[%clk 0:00:00]} 10. dxe5 {[%clk 0:00:00]}  Nd7 {[%clk 0:00:00]} 11. c4 {[%clk 0:00:00]}  c6 {[%clk 0:00:00]} 12. e4 {[%clk 0:00:00]}  d4 {[%clk 0:00:00]} 13. Bxd4 {[%clk 0:00:00]}  Nc5 {[%clk 0:00:00]} 14. Bxc5 {[%clk 0:00:00]}  Bxc5 {[%clk 0:00:00]} 15. Qc2 {[%clk 0:00:00]}  Qc7 {[%clk 0:00:00]} 16. Nf3 {[%clk 0:00:00]}  Rfd8 {[%clk 0:00:00]} 17. Rad1 {[%clk 0:00:00]}  a5 {[%clk 0:00:00]} 18. Rxd8+ {[%clk 0:00:00]}  Rxd8 {[%clk 0:00:00]} 19. Rd1 {[%clk 0:00:00]}  Rd7 {[%clk 0:00:00]} 20. Rd3 {[%clk 0:00:00]}  Qd8 {[%clk 0:00:00]} 21. Bf1 {[%clk 0:00:00]}  h6 {[%clk 0:00:00]} 22. Rxd7 {[%clk 0:00:00]}  Qxd7 {[%clk 0:00:00]} 23. Qd3 {[%clk 0:00:00]}  Qxd3 {[%clk 0:00:00]} 24. Bxd3 {[%clk 0:00:00]}  Bb4 {[%clk 0:00:00]} 25. Kg2 {[%clk 0:00:00]}  c5 {[%clk 0:00:00]} 26. Ng1 {[%clk 0:00:00]}  Bc3 {[%clk 0:00:00]} 27. f4 {[%clk 0:00:00]}  f6 {[%clk 0:00:00]} 28. exf6 {[%clk 0:00:00]}  gxf6 {[%clk 0:00:00]} 29. Ne2 {[%clk 0:00:00]}  Bd2 {[%clk 0:00:00]} 30. Kf2 {[%clk 0:00:00]}  Kf7 {[%clk 0:00:00]} 31. Ng1 {[%clk 0:00:00]}  Bc3 {[%clk 0:00:00]} 32. Nf3 {[%clk 0:00:00]}  Ke7 {[%clk 0:00:00]} 33. Ke3 {[%clk 0:00:00]}  Bc6 {[%clk 0:00:00]} 34. g4 {[%clk 0:00:00]}  Kd6 {[%clk 0:00:00]} 35. h4 {[%clk 0:00:00]}  Be8 {[%clk 0:00:00]} 36. h5 {[%clk 0:00:00]}  Bb2 {[%clk 0:00:00]} 37. Kd2 {[%clk 0:00:00]}  e5 {[%clk 0:00:00]} 38. g5 {[%clk 0:00:00]}  fxg5 {[%clk 0:00:00]} 39. fxg5 {[%clk 0:00:00]}  Bxh5 {[%clk 0:00:00]} 40. gxh6 {[%clk 0:00:00]}  Bg6 {[%clk 0:00:00]} 41. Ng5 {[%clk 0:00:00]}  Ba3 {[%clk 0:00:00]} 42. h7 {[%clk 0:00:00]}  Bxh7 {[%clk 0:00:00]} 43. Nxh7 {[%clk 0:00:00]}  Bb4+ {[%clk 0:00:00]} 44. Ke2 {[%clk 0:00:00]}  Bc3 {[%clk 0:00:00]} 45. Ng5 {[%clk 0:00:00]}  Bd4 {[%clk 0:00:00]} 46. Nf3 {[%clk 0:00:00]}  Bc3 {[%clk 0:00:00]} 47. Nh4 {[%clk 0:00:00]}  Ke6 {[%clk 0:00:00]} 48. Nf5 {[%clk 0:00:00]}  Kf6 {[%clk 0:00:00]} 49. Nd6 {[%clk 0:00:00]}  Kg5 {[%clk 0:00:00]} 50. Nc8 {[%clk 0:00:00]}  Kf4 {[%clk 0:00:00]} 51. Nxb6 {[%clk 0:00:00]}  Kg5 {[%clk 0:00:00]} 52. Nd7 {[%clk 0:00:00]}  Bd4 {[%clk 0:00:00]} 53. a3 {[%clk 0:00:00]}  Kg6 {[%clk 0:00:00]} 54. Kf3 {[%clk 0:00:00]}  Kf7 {[%clk 0:00:00]} 55. Kg4 {[%clk 0:00:00]}  Ke6 {[%clk 0:00:00]} 56. Nb6 {[%clk 0:00:00]}  Kd6 {[%clk 0:00:00]} 57. Kf5 {[%clk 0:00:00]}  Kc6 {[%clk 0:00:00]} 58. Nd5 {[%clk 0:00:00]}  a4 {[%clk 0:00:00]} 59. bxa4 {[%clk 0:00:00]}  Kd6 {[%clk 0:00:00]} 60. a5 {[%clk 0:00:00]}  Kc6 {[%clk 0:00:00]} 61. a6 {[%clk 0:00:00]} 1-0


[Site "https://www.chess.com"]

[Event "Titled Tuesday Blitz August 16 Early 2022"]
[White "Lagno, Kateryna"]
[Black "Martinez Alcantara, Jose Eduardo"]
[WhiteFideId "14109336"]
[BlackFideId "3805662"]
[WhiteElo "2522"]
[BlackElo "2703"]
[Result "0-1"]
[Round "09"]
[TimeControl "180+1"]
[Date "2022.08.16"]
[WhiteClock "0:01:03"]
[BlackClock "0:02:12"]

1. e4 {[%clk 0:03:00]}  c5 {[%clk 0:02:58]} 2. Nf3 {[%clk 0:03:01]}  d6 {[%clk 0:02:58]} 3. d4 {[%clk 0:03:00]}  cxd4 {[%clk 0:02:59]} 4. Nxd4 {[%clk 0:03:01]}  Nf6 {[%clk 0:03:00]} 5. Nc3 {[%clk 0:03:01]}  Nc6 {[%clk 0:03:01]} 6. Bg5 {[%clk 0:02:56]}  e6 {[%clk 0:03:01]} 7. Bb5 {[%clk 0:02:55]}  Bd7 {[%clk 0:03:00]} 8. Qd3 {[%clk 0:02:53]}  Be7 {[%clk 0:02:56]} 9. O-O-O {[%clk 0:02:52]}  Nxd4 {[%clk 0:02:57]} 10. Bxd7+ {[%clk 0:02:42]}  Qxd7 {[%clk 0:02:54]} 11. Qxd4 {[%clk 0:02:42]}  Qc6 {[%clk 0:02:43]} 12. Bxf6 {[%clk 0:02:27]}  gxf6 {[%clk 0:02:44]} 13. Rd3 {[%clk 0:02:22]}  a6 {[%clk 0:02:43]} 14. Kb1 {[%clk 0:02:20]}  Rc8 {[%clk 0:02:43]} 15. Rg3 {[%clk 0:01:54]}  Qc5 {[%clk 0:02:41]} 16. Qd2 {[%clk 0:01:52]}  h5 {[%clk 0:02:41]} 17. h4 {[%clk 0:01:48]}  f5 {[%clk 0:02:34]} 18. exf5 {[%clk 0:01:35]}  Qxf5 {[%clk 0:02:35]} 19. Rf3 {[%clk 0:01:31]}  Qg6 {[%clk 0:02:35]} 20. Rg3 {[%clk 0:01:24]}  Qf5 {[%clk 0:02:35]} 21. Rf3 {[%clk 0:01:24]}  Qg4 {[%clk 0:02:31]} 22. Rg3 {[%clk 0:01:22]}  Qc4 {[%clk 0:02:30]} 23. Re1 {[%clk 0:01:16]}  d5 {[%clk 0:02:21]} 24. Rge3 {[%clk 0:01:03]}  d4 {[%clk 0:02:12]} 0-1


[Site "https://www.chess.com"]

[Event "Titled Tuesday Blitz August 16 Early 2022"]
[White "Lauridsen, Jesper Morch"]
[Black "Proudian, Armen"]
[WhiteFideId "1401890"]
[BlackFideId "2130734"]
[WhiteElo "2221"]
[BlackElo "2380"]
[Result "0-1"]
[Round "09"]
[TimeControl "180+2"]
[Date "2022.08.18"]
[WhiteClock "0:00:00"]
[BlackClock "0:00:00"]

1. e4 {[%clk 0:00:00]}  e5 {[%clk 0:00:00]} 2. Nf3 {[%clk 0:00:00]}  Nc6 {[%clk 0:00:00]} 3. d4 {[%clk 0:00:00]}  exd4 {[%clk 0:00:00]} 4. Bc4 {[%clk 0:00:00]}  Nf6 {[%clk 0:00:00]} 5. O-O {[%clk 0:00:00]}  Nxe4 {[%clk 0:00:00]} 6. Re1 {[%clk 0:00:00]}  d5 {[%clk 0:00:00]} 7. Nc3 {[%clk 0:00:00]}  dxc4 {[%clk 0:00:00]} 8. Rxe4+ {[%clk 0:00:00]}  Be6 {[%clk 0:00:00]} 9. Nxd4 {[%clk 0:00:00]}  Nxd4 {[%clk 0:00:00]} 10. Rxd4 {[%clk 0:00:00]}  Qf6 {[%clk 0:00:00]} 11. Nb5 {[%clk 0:00:00]}  Rc8 {[%clk 0:00:00]} 12. Bf4 {[%clk 0:00:00]}  Bc5 {[%clk 0:00:00]} 13. Bxc7 {[%clk 0:00:00]}  O-O {[%clk 0:00:00]} 14. Rf4 {[%clk 0:00:00]}  Qxb2 {[%clk 0:00:00]} 15. Rb1 {[%clk 0:00:00]}  Qxa2 {[%clk 0:00:00]} 16. Be5 {[%clk 0:00:00]}  Rfd8 {[%clk 0:00:00]} 17. Qe1 {[%clk 0:00:00]}  Qxc2 {[%clk 0:00:00]} 18. Nc7 {[%clk 0:00:00]}  Bd5 {[%clk 0:00:00]} 19. Nxd5 {[%clk 0:00:00]}  Rxd5 {[%clk 0:00:00]} 20. Ba1 {[%clk 0:00:00]}  b5 {[%clk 0:00:00]} 21. Rc1 {[%clk 0:00:00]}  Qd2 {[%clk 0:00:00]} 22. Qf1 {[%clk 0:00:00]}  Re8 {[%clk 0:00:00]} 23. Rf3 {[%clk 0:00:00]}  Re2 {[%clk 0:00:00]} 24. h4 {[%clk 0:00:00]}  Rxf2 {[%clk 0:00:00]} 0-1


[Site "https://www.chess.com"]

[Event "Titled Tuesday Blitz August 16 Early 2022"]
[White "Lebedev, Artem S."]
[Black "Broca Jimenez, Fernando"]
[WhiteFideId "34272747"]
[BlackFideId "5104742"]
[WhiteElo "1699"]
[BlackElo "2062"]
[Result "1/2-1/2"]
[Round "09"]
[TimeControl "180+2"]
[Date "2022.08.18"]
[WhiteClock "0:00:00"]
[BlackClock "0:00:00"]

1. e4 {[%clk 0:00:00]}  c5 {[%clk 0:00:00]} 2. Nf3 {[%clk 0:00:00]}  g6 {[%clk 0:00:00]} 3. d4 {[%clk 0:00:00]}  cxd4 {[%clk 0:00:00]} 4. Nxd4 {[%clk 0:00:00]}  Nc6 {[%clk 0:00:00]} 5. c4 {[%clk 0:00:00]}  Nf6 {[%clk 0:00:00]} 6. Nc3 {[%clk 0:00:00]}  d6 {[%clk 0:00:00]} 7. f3 {[%clk 0:00:00]}  Nxd4 {[%clk 0:00:00]} 8. Qxd4 {[%clk 0:00:00]}  Bg7 {[%clk 0:00:00]} 9. Be3 {[%clk 0:00:00]}  O-O {[%clk 0:00:00]} 10. Qd2 {[%clk 0:00:00]}  Be6 {[%clk 0:00:00]} 11. Be2 {[%clk 0:00:00]}  Qa5 {[%clk 0:00:00]} 12. Nd5 {[%clk 0:00:00]}  Qxd2+ {[%clk 0:00:00]} 13. Kxd2 {[%clk 0:00:00]}  Nxd5 {[%clk 0:00:00]} 14. cxd5 {[%clk 0:00:00]}  Bd7 {[%clk 0:00:00]} 15. Rac1 {[%clk 0:00:00]}  Rfc8 {[%clk 0:00:00]} 16. b3 {[%clk 0:00:00]}  a6 {[%clk 0:00:00]} 17. a4 {[%clk 0:00:00]}  Rxc1 {[%clk 0:00:00]} 18. Rxc1 {[%clk 0:00:00]}  Rc8 {[%clk 0:00:00]} 19. Rxc8+ {[%clk 0:00:00]}  Bxc8 {[%clk 0:00:00]} 20. b4 {[%clk 0:00:00]}  Bd7 {[%clk 0:00:00]} 21. b5 {[%clk 0:00:00]}  axb5 {[%clk 0:00:00]} 22. Bxb5 {[%clk 0:00:00]}  Bc8 {[%clk 0:00:00]} 23. a5 {[%clk 0:00:00]}  Kf8 {[%clk 0:00:00]} 24. Kd3 {[%clk 0:00:00]}  e6 {[%clk 0:00:00]} 25. dxe6 {[%clk 0:00:00]}  fxe6 {[%clk 0:00:00]} 26. Bf4 {[%clk 0:00:00]}  Ke7 {[%clk 0:00:00]} 27. Bg5+ {[%clk 0:00:00]}  Kf7 {[%clk 0:00:00]} 28. Bf4 {[%clk 0:00:00]}  Ke7 {[%clk 0:00:00]} 29. Bg5+ {[%clk 0:00:00]}  Kf8 {[%clk 0:00:00]} 30. Bf4 {[%clk 0:00:00]}  Ke7 {[%clk 0:00:00]} 1/2-1/2


[Site "https://www.chess.com"]

[Event "Titled Tuesday Blitz August 16 Early 2022"]
[White "Malyi, Viacheslav"]
[Black "Orlov, Georgi"]
[WhiteFideId "14123983"]
[BlackFideId "2011271"]
[WhiteElo "2190"]
[BlackElo "2461"]
[Result "0-1"]
[Round "09"]
[TimeControl "180+2"]
[Date "2022.08.18"]
[WhiteClock "0:00:00"]
[BlackClock "0:00:00"]

1. e4 {[%clk 0:00:00]}  e6 {[%clk 0:00:00]} 2. d4 {[%clk 0:00:00]}  b6 {[%clk 0:00:00]} 3. Nc3 {[%clk 0:00:00]}  Bb7 {[%clk 0:00:00]} 4. f4 {[%clk 0:00:00]}  Bb4 {[%clk 0:00:00]} 5. Bd3 {[%clk 0:00:00]}  f5 {[%clk 0:00:00]} 6. Qe2 {[%clk 0:00:00]}  fxe4 {[%clk 0:00:00]} 7. Bxe4 {[%clk 0:00:00]}  Bxe4 {[%clk 0:00:00]} 8. Qxe4 {[%clk 0:00:00]}  Nc6 {[%clk 0:00:00]} 9. Nf3 {[%clk 0:00:00]}  Nf6 {[%clk 0:00:00]} 10. Qd3 {[%clk 0:00:00]}  O-O {[%clk 0:00:00]} 11. O-O {[%clk 0:00:00]}  Bxc3 {[%clk 0:00:00]} 12. bxc3 {[%clk 0:00:00]}  d6 {[%clk 0:00:00]} 13. a4 {[%clk 0:00:00]}  Qd7 {[%clk 0:00:00]} 14. c4 {[%clk 0:00:00]}  Rae8 {[%clk 0:00:00]} 15. Bd2 {[%clk 0:00:00]}  Ne7 {[%clk 0:00:00]} 16. a5 {[%clk 0:00:00]}  Ng6 {[%clk 0:00:00]} 17. axb6 {[%clk 0:00:00]}  axb6 {[%clk 0:00:00]} 18. d5 {[%clk 0:00:00]}  exd5 {[%clk 0:00:00]} 19. cxd5 {[%clk 0:00:00]}  Ne4 {[%clk 0:00:00]} 20. Nd4 {[%clk 0:00:00]}  Nc5 {[%clk 0:00:00]} 21. Qb5 {[%clk 0:00:00]}  Qf7 {[%clk 0:00:00]} 22. c4 {[%clk 0:00:00]}  Re4 {[%clk 0:00:00]} 23. f5 {[%clk 0:00:00]}  Ne5 {[%clk 0:00:00]} 24. Ne6 {[%clk 0:00:00]}  Rc8 {[%clk 0:00:00]} 25. Rac1 {[%clk 0:00:00]}  Ned3 {[%clk 0:00:00]} 26. Rcd1 {[%clk 0:00:00]}  Re2 {[%clk 0:00:00]} 27. Bc3 {[%clk 0:00:00]}  Qh5 {[%clk 0:00:00]} 28. Bxg7 {[%clk 0:00:00]}  Qg4 {[%clk 0:00:00]} 29. g3 {[%clk 0:00:00]}  Qh3 {[%clk 0:00:00]} 30. Nf4 {[%clk 0:00:00]}  Nxf4 {[%clk 0:00:00]} 31. Rf2 {[%clk 0:00:00]}  Rxf2 {[%clk 0:00:00]} 32. Kxf2 {[%clk 0:00:00]}  Qg2+ {[%clk 0:00:00]} 33. Ke3 {[%clk 0:00:00]}  Qe4+ {[%clk 0:00:00]} 34. Kf2 {[%clk 0:00:00]}  Qe2+ {[%clk 0:00:00]} 0-1


[Site "https://www.chess.com"]

[Event "Titled Tuesday Blitz August 16 Early 2022"]
[White "Manukian, Artak"]
[Black "Barria Zuniga, Daniel"]
[WhiteFideId "13301373"]
[BlackFideId "3400816"]
[WhiteElo "2196"]
[BlackElo "2414"]
[Result "0-1"]
[Round "09"]
[TimeControl "180+2"]
[Date "2022.08.18"]
[WhiteClock "0:00:00"]
[BlackClock "0:00:00"]

1. e4 {[%clk 0:00:00]}  g6 {[%clk 0:00:00]} 2. d4 {[%clk 0:00:00]}  Bg7 {[%clk 0:00:00]} 3. c4 {[%clk 0:00:00]}  c5 {[%clk 0:00:00]} 4. d5 {[%clk 0:00:00]}  d6 {[%clk 0:00:00]} 5. Nc3 {[%clk 0:00:00]}  e6 {[%clk 0:00:00]} 6. Bd3 {[%clk 0:00:00]}  exd5 {[%clk 0:00:00]} 7. exd5 {[%clk 0:00:00]}  Nh6 {[%clk 0:00:00]} 8. Nf3 {[%clk 0:00:00]}  O-O {[%clk 0:00:00]} 9. O-O {[%clk 0:00:00]}  Bg4 {[%clk 0:00:00]} 10. h3 {[%clk 0:00:00]}  Bxf3 {[%clk 0:00:00]} 11. Qxf3 {[%clk 0:00:00]}  Nd7 {[%clk 0:00:00]} 12. Bf4 {[%clk 0:00:00]}  Ne5 {[%clk 0:00:00]} 13. Bxe5 {[%clk 0:00:00]}  Bxe5 {[%clk 0:00:00]} 14. Rfe1 {[%clk 0:00:00]}  f5 {[%clk 0:00:00]} 15. Re2 {[%clk 0:00:00]}  a6 {[%clk 0:00:00]} 16. Rae1 {[%clk 0:00:00]}  Qh4 {[%clk 0:00:00]} 17. Rxe5 {[%clk 0:00:00]}  dxe5 {[%clk 0:00:00]} 18. Rxe5 {[%clk 0:00:00]}  Nf7 {[%clk 0:00:00]} 19. Re6 {[%clk 0:00:00]}  Ng5 {[%clk 0:00:00]} 20. Qe3 {[%clk 0:00:00]}  Nxe6 {[%clk 0:00:00]} 21. Qxe6+ {[%clk 0:00:00]}  Rf7 {[%clk 0:00:00]} 22. d6 {[%clk 0:00:00]}  Qf6 {[%clk 0:00:00]} 23. Qd5 {[%clk 0:00:00]}  Rd8 {[%clk 0:00:00]} 24. Qxc5 {[%clk 0:00:00]}  Qxd6 {[%clk 0:00:00]} 25. Qxd6 {[%clk 0:00:00]}  Rxd6 {[%clk 0:00:00]} 26. Nd5 {[%clk 0:00:00]}  Rfd7 {[%clk 0:00:00]} 0-1


[Site "https://www.chess.com"]

[Event "Titled Tuesday Blitz August 16 Early 2022"]
[White "McBryde, Lamel"]
[Black "Grot, Blazej"]
[WhiteFideId "2058596"]
[BlackFideId "21835845"]
[WhiteElo "2136"]
[BlackElo "1614"]
[Result "1-0"]
[Round "09"]
[TimeControl "180+2"]
[Date "2022.08.18"]
[WhiteClock "0:00:00"]
[BlackClock "0:00:00"]

1. Nf3 {[%clk 0:00:00]}  Nf6 {[%clk 0:00:00]} 2. b3 {[%clk 0:00:00]}  e6 {[%clk 0:00:00]} 3. Bb2 {[%clk 0:00:00]}  d5 {[%clk 0:00:00]} 4. d4 {[%clk 0:00:00]}  c6 {[%clk 0:00:00]} 5. e3 {[%clk 0:00:00]}  Nbd7 {[%clk 0:00:00]} 6. Bd3 {[%clk 0:00:00]}  Bd6 {[%clk 0:00:00]} 7. Nbd2 {[%clk 0:00:00]}  Qe7 {[%clk 0:00:00]} 8. Ne5 {[%clk 0:00:00]}  O-O {[%clk 0:00:00]} 9. a3 {[%clk 0:00:00]}  c5 {[%clk 0:00:00]} 10. f4 {[%clk 0:00:00]}  Ne8 {[%clk 0:00:00]} 11. O-O {[%clk 0:00:00]}  f6 {[%clk 0:00:00]} 12. Bxh7+ {[%clk 0:00:00]}  Kxh7 {[%clk 0:00:00]} 13. Qh5+ {[%clk 0:00:00]}  Kg8 {[%clk 0:00:00]} 14. Ng6 {[%clk 0:00:00]}  Qd8 {[%clk 0:00:00]} 15. Rf3 {[%clk 0:00:00]}  f5 {[%clk 0:00:00]} 16. Rg3 {[%clk 0:00:00]}  Ndf6 {[%clk 0:00:00]} 17. Qh8+ {[%clk 0:00:00]}  Kf7 {[%clk 0:00:00]} 18. Nxf8 {[%clk 0:00:00]}  Bxf8 {[%clk 0:00:00]} 19. Nf3 {[%clk 0:00:00]}  Nd7 {[%clk 0:00:00]} 20. Ng5+ {[%clk 0:00:00]}  Ke7 {[%clk 0:00:00]} 21. Qg8 {[%clk 0:00:00]}  Ndf6 {[%clk 0:00:00]} 22. Qf7+ {[%clk 0:00:00]}  Kd6 {[%clk 0:00:00]} 23. dxc5+ {[%clk 0:00:00]}  Kxc5 {[%clk 0:00:00]} 24. Qxf8+ {[%clk 0:00:00]}  Qd6 {[%clk 0:00:00]} 25. Qh8 {[%clk 0:00:00]}  Bd7 {[%clk 0:00:00]} 26. Nf7 {[%clk 0:00:00]}  Qe7 {[%clk 0:00:00]} 27. Ne5 {[%clk 0:00:00]}  Kb6 {[%clk 0:00:00]} 28. c4 {[%clk 0:00:00]}  Ne4 {[%clk 0:00:00]} 29. Rf3 {[%clk 0:00:00]}  Kc7 {[%clk 0:00:00]} 30. cxd5 {[%clk 0:00:00]}  exd5 {[%clk 0:00:00]} 31. Rc1+ {[%clk 0:00:00]}  Bc6 {[%clk 0:00:00]} 32. b4 {[%clk 0:00:00]}  a6 {[%clk 0:00:00]} 33. Qg8 {[%clk 0:00:00]}  Rd8 {[%clk 0:00:00]} 34. Rff1 {[%clk 0:00:00]}  N8f6 {[%clk 0:00:00]} 35. Qf7 {[%clk 0:00:00]}  Qxf7 {[%clk 0:00:00]} 36. Nxf7 {[%clk 0:00:00]}  Re8 {[%clk 0:00:00]} 37. Be5+ {[%clk 0:00:00]}  Kc8 {[%clk 0:00:00]} 38. a4 {[%clk 0:00:00]}  Kd7 {[%clk 0:00:00]} 39. b5 {[%clk 0:00:00]}  axb5 {[%clk 0:00:00]} 40. axb5 {[%clk 0:00:00]}  Bxb5 {[%clk 0:00:00]} 41. Rc7+ {[%clk 0:00:00]}  Ke6 {[%clk 0:00:00]} 42. Rb1 {[%clk 0:00:00]}  Bc6 {[%clk 0:00:00]} 43. Rb6 {[%clk 0:00:00]}  Re7 {[%clk 0:00:00]} 44. Rbxc6+ {[%clk 0:00:00]}  bxc6 {[%clk 0:00:00]} 45. Rxc6+ {[%clk 0:00:00]}  Kxf7 {[%clk 0:00:00]} 46. Rb6 {[%clk 0:00:00]} 1-0


[Site "https://www.chess.com"]